bitfinex/quotes_ETHUSD_20250814
["timestamp","ask_amount","ask_price","bid_price","bid_amount"]
[1755201718274,0.67841053,4533.5,4533.4,1.23]
[1755201718578,0.67841053,4533.5,4533.4,3.43584991]
[1755201720235,0.67841053,4533.5,4533.4,1.23]
[1755201720643,0.99441065,4533.5,4533.4,1.23]
[1755201720956,0.67841053,4533.5,4533.4,1.23]
[1755201721175,0.67889512,4533.5,4533.4,1.23]
[1755201721465,0.67889512,4533.5,4533.4,3.43584991]
[1755201721648,0.67889512,4533.5,4533.4,1.23]
[1755201721853,0.67889512,4533.5,4533.4,3.43584991]
[1755201722238,0.67889512,4533.5,4533.4,4.35634991]
[1755201722639,3.582,4534.2,4534.1,2.20550936]
[1755201722880,0.67988245,4534.2,4534.1,3.12600936]
[1755201723178,0.20579825,4534.2,4534.1,3.12600936]
[1755201723980,0.20579825,4534.8,4534.3,2.20537236]
[1755201724176,0.6799964,4534.7,4534.1,0.4856]
[1755201724481,0.47419815,4534.6,4534.4,2.20533036]
[1755201724680,0.002,4535.0,4534.9,2.20512028]
[1755201725254,0.002,4535.0,4534.6,0.4349]
[1755201725459,0.002,4535.0,4533.9,2.20556245]
[1755201725460,1.11535328,4534.9,4533.9,2.20556245]
[1755201725657,0.47398606,4534.8,4533.7,0.4856]
[1755201725860,0.20767705,4535.0,4534.4,2.20536242]
[1755201726056,0.47381412,4534.9,4534.3,0.4856]
[1755201726260,0.002,4535.0,4534.9,2.20512028]
[1755201726658,0.002,4535.0,4534.9,3.12562028]
[1755201727379,1e-08,4535.0,4534.9,3.65870205]
[1755201727779,0.002,4535.6,4534.9,3.65870205]
[1755201727780,1e-08,4535.6,4535.4,2.20487718]
[1755201728005,1e-08,4536.0,4535.9,2.20463414]
[1755201728162,1e-08,4536.5,4536.4,2.20439114]
[1755201728456,0.47387274,4538.9,4538.6,2.20328487]
[1755201728656,3.592,4539.0,4538.6,2.20329722]
[1755201728856,3.592,4539.0,4538.3,2.20343924]
[1755201729055,3.592,4539.0,4537.5,3.593]
[1755201729296,3.592,4539.0,4538.6,2.20330648]
[1755201729597,0.4356,4539.9,4537.3,12.44404414]
[1755201729782,3.593,4539.8,4538.7,0.4856]
[1755201729981,3.592,4539.9,4539.4,2.20291931]
[1755201730300,0.4356,4539.8,4538.7,0.4856]
[1755201730600,0.4356,4539.8,4538.1,4.5125]
[1755201730775,0.4356,4539.8,4538.8,2.203188]
[1755201730968,0.1104,4539.5,4538.8,2.313588]
[1755201731169,0.1104,4539.5,4538.8,0.1104]
[1755201731500,0.4356,4539.8,4538.1,6.71605934]
[1755201731691,0.4356,4539.8,4538.8,2.20320068]
[1755201731892,0.4356,4539.8,4538.1,0.9205]
[1755201732078,0.0146,4539.5,4538.1,0.4856]
[1755201732274,0.4356,4539.4,4538.3,2.2034235]
[1755201732477,0.4356,4539.4,4537.6,0.9205]
[1755201732694,0.4356,4539.4,4538.5,2.20335745]
[1755201733000,0.4356,4539.4,4538.2,2.20347866]
[1755201733204,0.4356,4539.4,4538.6,2.20327861]
[1755201733607,0.4356,4539.4,4538.3,2.20343358]
[1755201733608,0.4356,4539.4,4538.4,2.20337569]
[1755201733804,0.4356,4539.4,4537.9,0.4856]
[1755201734013,0.4356,4539.4,4538.5,2.2033604]
[1755201734175,0.4356,4539.4,4538.1,2.20352675]
[1755201734511,0.4356,4539.4,4537.9,0.4856]
[1755201734715,0.55,4539.2,4535.8,2.20463997]
[1755201734922,0.55,4539.0,4536.5,0.4349]
[1755201735119,4.0176,4538.9,4536.5,0.4349]
[1755201735276,4.0176,4538.9,4537.7,2.20374647]
[1755201735467,4.0176,4538.9,4537.3,0.4856]
[1755201735874,4.0176,4538.9,4537.7,2.20375038]
[1755201736245,4.0176,4538.9,4537.5,2.20385674]
[1755201736408,4.0176,4538.9,4537.5,2.5162878]
[1755201736613,3.582,4538.9,4537.4,2.20390259]
[1755201736794,0.4356,4538.8,4537.6,2.20379777]
[1755201737173,0.4356,4538.8,4537.5,2.20384996]
[1755201737369,0.55,4538.7,4535.4,2.20487718]
[1755201737614,1.0286,4538.7,4536.3,2.20441937]
[1755201737998,0.55,4538.5,4535.4,0.9205]
[1755201738168,0.55,4538.3,4536.1,2.20449421]
[1755201738377,4.0206,4538.2,4536.9,2.2041455]
[1755201738577,0.55,4538.1,4536.9,2.20414336]
[1755201738778,0.55,4538.1,4536.5,0.4856]
[1755201739029,0.55,4538.1,4536.6,2.20424925]
[1755201739194,0.4356,4538.0,4536.2,2.20444397]
[1755201739376,0.4356,4538.0,4536.6,2.20427175]
[1755201739571,0.4356,4538.0,4536.7,2.20424204]
[1755201739771,3.584,4537.9,4536.9,2.20414487]
[1755201740215,3.584,4537.9,4536.6,2.20426283]
[1755201740216,3.584,4537.9,4536.8,2.20418715]
[1755201740712,3.584,4537.9,4536.7,2.20424045]
[1755201741016,3.584,4537.9,4533.9,2.86729367]
[1755201741017,1.4642,4537.8,4535.4,0.4856]
[1755201741392,0.1104,4536.4,4536.0,2.20453883]
[1755201741591,3.58,4536.3,4536.0,2.20453883]
[1755201741833,3.58,4536.3,4535.8,0.1104]
[1755201742037,3.58,4536.3,4535.9,2.20463414]
[1755201742334,3.58,4536.3,4535.8,2.31507325]
[1755201742549,3.58,4536.3,4535.6,0.1104]
[1755201742695,3.58,4536.3,4536.2,2.20448833]
[1755201743031,3.58,4536.3,4536.2,3.16718833]
[1755201743233,0.1104,4536.4,4536.3,2.20443974]
[1755201743434,3.6904,4537.0,4536.3,0.9627]
[1755201743735,3.6904,4537.0,4536.4,2.20439114]
[1755201743949,3.6904,4537.0,4536.3,0.9627]
[1755201744149,3.6904,4537.0,4536.8,2.20419139]
[1755201744352,3.6904,4537.0,4536.3,1.29046447]
[1755201744568,3.578,4537.4,4536.4,2.65279114]
[1755201744852,3.6884,4537.4,4536.8,0.1104]
[1755201745010,3.6884,4537.4,4537.0,2.20405326]
[1755201745214,3.6884,4537.4,4536.9,2.20414475]
[1755201745452,3.6884,4537.4,4536.8,2.3145927]
[1755201745635,3.578,4537.4,4536.5,2.20429644]
[1755201745841,0.1104,4536.9,4536.3,0.1104]
[1755201746019,0.1104,4536.9,4536.1,2.3148981]
[1755201746220,0.1104,4536.9,4536.1,2.31492628]
[1755201746516,0.1104,4536.9,4535.4,0.5143]
[1755201746517,0.55,4537.0,4535.4,0.5143]
[1755201746721,0.55,4537.0,4535.9,2.20463209]
[1755201746934,0.55,4537.3,4534.7,0.5143]
[1755201747247,0.55,4536.8,4535.4,2.20483861]
[1755201747575,0.55,4536.6,4534.7,0.5143]
[1755201747728,0.55,4536.4,4534.9,2.2050782]
[1755201747936,0.4405,4536.3,4535.3,2.20488778]
[1755201748256,0.4405,4536.3,4535.1,2.20497861]
[1755201748429,0.4405,4536.3,4534.7,0.5143]
[1755201748759,0.9352,4536.3,4535.0,2.20506866]
[1755201748984,0.4405,4536.3,4534.7,2.71949475]
[1755201749295,3.577,4536.2,4534.8,1.27948947]
[1755201749497,3.577,4536.2,4534.8,0.5143]
[1755201749647,3.577,4536.2,4534.7,2.20517738]
[1755201749648,0.4405,4536.1,4535.0,2.20505278]
[1755201749842,3.577,4536.2,4533.5,3.0]
[1755201750162,3.577,4536.2,4535.1,2.20501929]
[1755201750163,4.0175,4536.2,4535.1,2.20501929]
[1755201750478,4.0175,4536.2,4534.6,2.20521988]
[1755201750782,4.0175,4536.2,4534.4,0.5143]
[1755201751089,0.4405,4536.1,4535.0,2.20505888]
[1755201751273,0.4405,4536.1,4535.3,2.20491258]
[1755201751681,0.4405,4536.1,4534.7,0.9627]
[1755201752146,3.577,4536.2,4535.3,2.20488753]
[1755201752483,3.577,4536.2,4535.1,2.20498274]
[1755201752658,3.577,4536.2,4535.5,2.20482835]
[1755201752990,3.577,4536.2,4535.7,2.20470417]
[1755201753292,3.57,4536.1,4535.2,0.5143]
[1755201753583,3.57,4536.0,4535.9,2.20463414]
[1755201753751,3.57,4536.0,4535.7,2.71901918]
[1755201753949,3.57,4536.0,4535.2,2.52170363]
[1755201754272,3.57,4536.0,4535.6,2.2047797]
[1755201754586,3.57,4536.0,4535.1,0.9627]
[1755201754787,0.0146,4536.2,4535.9,2.20463414]
[1755201755109,0.0146,4536.2,4535.1,0.9627]
[1755201755110,3.568,4536.0,4535.8,2.20467653]
[1755201755286,3.568,4536.0,4535.1,0.9627]
[1755201755451,3.568,4536.0,4535.5,2.20482479]
[1755201755648,3.568,4536.0,4534.5,0.9627]
[1755201755878,4.0085,4536.0,4535.3,2.20490505]
[1755201756088,4.0085,4536.0,4534.5,0.9627]
[1755201756411,4.0085,4536.0,4535.8,0.001]
[1755201756606,3.568,4536.0,4535.8,0.001]
[1755201756787,0.1104,4535.9,4535.8,0.001]
[1755201758699,0.1104,4535.9,4535.8,2.20568274]
[1755201759376,0.1104,4535.9,4535.8,0.001]
[1755201759709,0.5509,4535.9,4535.8,0.001]
[1755201759927,1.5956,4535.9,4535.8,0.001]
[1755201763522,5.1536,4535.9,4535.8,0.001]
[1755201765196,4.6589,4535.9,4535.8,0.001]
[1755201765579,0.55,4535.4,4533.7,0.001]
[1755201765783,4.874,4535.0,4533.7,0.001]
[1755201765993,1.874,4534.8,4533.7,0.001]
[1755201766202,3.55,4534.6,4533.7,0.001]
[1755201766379,0.55,4534.4,4533.7,0.001]
[1755201766605,0.55,4534.2,4533.7,0.001]
[1755201766809,0.55,4534.0,4533.9,0.001]
[1755201767003,3.561,4534.0,4533.9,0.001]
[1755201767782,4.0015,4534.0,4533.9,0.001]
[1755201767995,5.29,4534.1,4533.9,0.001]
[1755201768226,3.561,4534.0,4533.9,0.001]
[1755201768390,5.29,4534.1,4533.9,0.5153]
[1755201768724,5.29,4534.1,4534.0,3.168258]
[1755201769026,0.68783235,4535.1,4534.0,1.50028878]
[1755201769326,3.559,4535.0,4534.9,2.20510732]
[1755201769527,5.291,4536.2,4535.0,2.20507032]
[1755201769689,4.109,4536.1,4534.9,3.16781863]
[1755201770025,4.109,4536.1,4534.9,0.9627]
[1755201770328,3.559,4536.1,4534.9,0.9627]
[1755201770619,0.4947,4536.9,4534.9,0.9627]
[1755201770787,0.4405,4537.0,4535.0,0.9627]
[1755201770986,0.3732821,4537.0,4535.9,2.20460903]
[1755201771195,3.558,4536.9,4535.7,0.5143]
[1755201771690,3.558,4536.9,4535.1,0.4351]
[1755201772010,1.0222,4536.8,4535.1,0.9107]
[1755201772183,1.22674003,4536.8,4535.1,0.4756]
[1755201772389,0.55,4536.6,4535.1,0.4756]
[1755201772927,0.55,4536.6,4535.1,3.02314566]
[1755201773234,0.20454003,4536.8,4535.7,2.20473086]
[1755201773391,3.557,4536.7,4535.7,0.4756]
[1755201773733,3.557,4536.7,4535.8,0.4351]
[1755201773936,0.16293681,4537.0,4535.9,0.4756]
[1755201774137,3.558,4536.6,4536.1,2.20452469]
[1755201774433,3.558,4536.6,4535.6,2.20473329]
[1755201774434,3.558,4536.6,4536.3,2.20443699]
[1755201774632,3.558,4536.6,4536.4,2.20438295]
[1755201774797,3.56,4536.6,4536.4,2.20438295]
[1755201775199,3.56,4536.6,4536.4,2.67998295]
[1755201775399,3.56,4536.6,4536.5,2.20434255]
[1755201775615,3.56,4536.6,4536.5,3.11504255]
[1755201775854,3.56,4536.6,4536.1,0.1104]
[1755201775997,3.56,4536.6,4535.9,0.4756]
[1755201776196,0.1104,4536.2,4535.9,0.4756]
[1755201776398,0.1104,4536.2,4536.1,2.20453693]
[1755201776701,3.565,4536.2,4536.1,3.11523693]
[1755201776903,3.565,4536.2,4535.6,0.1104]
[1755201777111,3.565,4536.2,4535.5,0.9107]
[1755201777415,0.1104,4536.0,4535.5,0.4756]
[1755201777803,0.1104,4536.0,4535.7,2.20468781]
[1755201778128,0.1104,4536.0,4535.6,0.4351]
[1755201778331,0.1104,4536.0,4535.7,0.4756]
[1755201778505,0.1104,4536.0,4535.7,0.4351]
[1755201778715,3.565,4536.2,4535.4,2.20484228]
[1755201778923,0.1104,4535.9,4535.4,2.20484228]
[1755201779441,0.1104,4535.9,4535.3,0.1104]
[1755201779763,3.565,4536.2,4535.1,2.2050229]
[1755201780066,0.1104,4535.5,4535.1,2.20499031]
[1755201780360,3.561,4535.4,4534.8,0.1104]
[1755201780538,3.561,4535.4,4534.8,2.20512829]
[1755201780743,0.1104,4535.1,4534.8,2.20512829]
[1755201781048,0.1104,4535.1,4534.9,0.9107]
[1755201781571,0.1104,4535.1,4534.9,2.64021406]
[1755201781778,0.1104,4535.1,4535.0,2.68067166]
[1755201781923,0.1104,4535.1,4535.0,0.9107]
[1755201782124,0.1104,4535.1,4535.0,3.11577166]
[1755201782431,0.1104,4535.1,4535.0,0.9107]
[1755201782625,0.1104,4535.1,4535.0,3.11577166]
[1755201782866,3.6704,4535.1,4535.0,3.11577166]
[1755201783867,3.56,4535.1,4535.0,3.11577166]
[1755201785369,3.56,4535.1,4535.0,2.68067166]
[1755201785527,3.56,4535.1,4534.5,0.1104]
[1755201785722,3.6704,4535.1,4534.5,0.1104]
[1755201785922,3.6704,4535.1,4534.8,2.20515842]
[1755201787100,3.6704,4535.1,4534.8,2.2051624]
[1755201787606,3.6704,4535.1,4534.7,2.20520601]
[1755201788159,3.6704,4535.1,4534.8,2.20516467]
[1755201788585,3.6704,4535.1,4534.9,2.20511879]
[1755201789178,0.1104,4535.1,4535.0,2.20507166]
[1755201789395,3.6544,4535.1,4535.0,0.4756]
[1755201789564,3.6544,4535.1,4534.5,2.31567474]
[1755201789759,3.6544,4535.1,4534.5,0.32263747]
[1755201789966,1.15,4535.0,4534.3,2.31580832]
[1755201790287,0.1104,4534.8,4534.0,0.1104]
[1755201790472,0.1104,4534.8,4534.3,2.20538406]
[1755201790673,0.1104,4534.8,4534.0,0.1104]
[1755201790874,0.1104,4534.8,4534.4,2.20531939]
[1755201791090,3.542,4534.7,4534.5,0.4756]
[1755201791296,3.542,4534.7,4534.5,2.20530562]
[1755201791512,3.542,4534.7,4534.5,2.20527956]
[1755201791698,3.542,4534.7,4534.6,2.20526617]
[1755201792021,0.1104,4534.8,4534.6,2.20526617]
[1755201792022,0.002,4535.3,4535.1,2.2050079]
[1755201792298,0.002,4535.3,4535.2,3.11567442]
[1755201792455,0.002,4535.8,4535.7,2.20473135]
[1755201792653,0.002,4535.8,4535.7,2.68033135]
[1755201792900,0.002,4535.8,4535.7,2.31513135]
[1755201793591,0.1124,4535.8,4535.1,0.1104]
[1755201793758,0.1124,4535.8,4535.5,2.20480654]
[1755201794189,0.1124,4535.8,4535.1,0.1104]
[1755201794404,0.4722,4535.7,4534.7,2.20517718]
[1755201794612,0.4722,4535.7,4534.4,0.001]
[1755201794760,0.1104,4534.8,4534.4,0.001]
[1755201794960,3.539,4534.7,4534.4,0.001]
[1755201795400,4.0102,4534.6,4534.4,0.001]
[1755201795597,0.4722,4534.5,4534.4,0.001]
[1755201795795,0.9347,4534.5,4534.4,0.001]
[1755201796098,4.0132,4534.5,4534.4,0.001]
[1755201796513,4.4757,4534.5,4534.4,0.001]
[1755201796715,0.4722,4534.5,4534.4,0.001]
[1755201796896,4.0132,4534.5,4534.4,0.001]
[1755201797099,8.0257,4534.5,4534.4,0.001]
[1755201797835,1.0222,4534.5,4534.4,0.001]
[1755201797999,5.29,4534.9,4534.4,0.001]
[1755201798208,3.541,4534.5,4534.4,0.4361]
[1755201798499,3.5556,4534.5,4534.4,0.4361]
[1755201798692,0.0146,4534.5,4534.4,2.20636344]
[1755201799019,3.5556,4534.5,4534.4,2.20636344]
[1755201800092,3.5556,4534.5,4534.4,0.001]
[1755201800407,0.0146,4534.5,4534.4,0.001]
[1755201800626,0.0146,4534.5,4534.4,3.11706344]
[1755201800825,0.002,4535.8,4535.7,2.20473135]
[1755201800981,0.002,4535.8,4534.4,1.46600558]
[1755201800982,3.542,4535.8,4535.5,2.20478918]
[1755201801294,3.542,4535.8,4535.3,2.20491997]
[1755201801618,3.542,4535.8,4535.7,2.20473135]
[1755201801787,3.542,4535.8,4535.1,0.4756]
[1755201801788,3.542,4535.8,4535.5,2.20482857]
[1755201801987,3.542,4535.8,4535.1,0.4756]
[1755201802187,3.542,4535.8,4535.6,2.20473385]
[1755201802415,3.542,4535.8,4535.5,2.20481953]
[1755201802819,3.542,4535.8,4535.1,2.680592]
[1755201803020,0.002,4535.8,4535.1,0.7871692]
[1755201803223,3.537,4535.7,4535.5,2.20481912]
[1755201803524,3.537,4535.7,4535.2,2.20493729]
[1755201803687,3.537,4535.7,4535.1,0.4756]
[1755201803884,3.537,4535.7,4535.0,2.2050394]
[1755201804422,0.55,4535.6,4534.4,0.001]
[1755201804722,1.0041,4535.6,4534.7,2.20520872]
[1755201805042,1.0041,4535.6,4534.9,2.20511231]
[1755201805185,0.1104,4535.0,4534.5,0.9037]
[1755201805383,0.1104,4535.0,4534.6,0.4687]
[1755201805618,3.534,4535.1,4534.9,0.1104]
[1755201805833,0.1124,4535.8,4535.6,2.20475196]
[1755201805991,3.535,4535.7,4535.0,0.9037]
[1755201806526,3.535,4535.7,4535.4,2.20483899]
[1755201806826,3.535,4535.7,4535.6,2.20477996]
[1755201807229,3.535,4535.7,4535.4,2.20482995]
[1755201807526,3.535,4535.7,4535.4,2.20483009]
[1755201807689,3.535,4535.7,4535.3,2.2049147]
[1755201807891,3.535,4535.7,4535.0,0.4687]
[1755201808087,0.1124,4535.8,4535.6,2.20477996]
[1755201808415,3.531,4535.7,4535.6,2.20477996]
[1755201808938,3.531,4535.7,4535.2,2.20493694]
[1755201809085,3.531,4535.7,4535.1,2.20502304]
[1755201809284,3.531,4535.7,4535.0,0.9037]
[1755201809522,3.531,4535.7,4535.1,0.32192675]
[1755201809822,3.533,4535.7,4535.2,2.20497442]
[1755201810191,3.533,4535.7,4535.1,2.52693613]
[1755201810385,3.533,4535.7,4535.5,2.2048179]
[1755201810696,3.533,4535.7,4535.1,0.32192675]
[1755201810908,0.002,4535.7,4535.2,0.02204974]
[1755201811223,0.002,4536.2,4536.1,2.20453693]
[1755201812907,0.002,4536.2,4536.1,2.67323693]
[1755201814393,0.002,4536.2,4536.1,2.20453693]
[1755201815707,3.522,4536.2,4536.1,2.20453693]
[1755201816188,4.672,4536.2,4534.8,0.4687]
[1755201816393,1.15,4536.1,4534.9,0.4687]
[1755201816592,1.15,4536.1,4535.5,2.20481407]
[1755201816794,1.15,4536.1,4535.5,2.20478943]
[1755201817023,1.15,4536.1,4535.6,2.20474118]
[1755201817227,1.15,4536.1,4535.7,2.20472912]
[1755201817431,3.523,4536.0,4535.8,2.20467523]
[1755201817634,1.15,4535.9,4535.8,2.20467523]
[1755201818036,4.672,4535.9,4535.8,3.10837523]
[1755201818536,1.15,4535.9,4535.8,3.10837523]
[1755201818838,3.522,4535.9,4535.8,3.63968895]
[1755201819143,4.672,4535.9,4535.8,3.63968895]
[1755201821013,1.15,4535.9,4535.8,3.63968895]
[1755201821327,3.518,4536.1,4536.0,2.20458553]
[1755201821629,3.518,4536.1,4536.0,3.10828553]
[1755201821831,3.518,4536.1,4536.0,2.31498553]
[1755201822232,5.1221,4536.1,4534.6,0.9037]
[1755201822398,5.1221,4536.1,4535.6,2.2047619]
[1755201822399,5.2325,4536.1,4535.6,2.2047619]
[1755201822601,0.55,4535.9,4534.8,2.20516478]
[1755201822800,0.1104,4535.4,4534.9,2.20512028]
[1755201823000,3.518,4535.3,4534.9,2.20512028]
[1755201823215,3.518,4535.3,4535.0,2.20507166]
[1755201823416,3.518,4535.3,4534.7,2.47222393]
[1755201823417,0.4541,4535.2,4534.7,0.1104]
[1755201823664,4.0075,4535.3,4534.3,0.001]
[1755201823665,0.1104,4534.8,4534.3,0.001]
[1755201823870,3.517,4534.7,4534.3,0.001]
[1755201824095,0.1104,4534.5,4534.3,0.001]
[1755201824258,0.1104,4534.5,4534.4,2.20636344]
[1755201824459,3.6274,4534.5,4534.4,2.20636344]
[1755201825272,0.4541,4535.5,4535.0,2.20505685]
[1755201825444,0.1104,4535.1,4535.0,2.20505685]
[1755201825779,0.1104,4535.1,4534.4,0.001]
[1755201825990,0.1104,4535.1,4534.7,2.20521754]
[1755201826168,0.1104,4535.1,4534.8,2.20516758]
[1755201826481,0.1104,4535.1,4534.8,2.20515245]
[1755201826705,0.1104,4535.1,4535.0,2.20507166]
[1755201826914,3.6244,4535.1,4535.0,2.67377166]
[1755201827066,3.6244,4535.1,4535.0,3.10877166]
[1755201827262,3.514,4535.1,4535.0,3.10877166]
[1755201827490,3.514,4535.1,4535.0,3.21917166]
[1755201828485,3.514,4535.1,4535.0,2.20507166]
[1755201828873,5.29,4535.8,4535.4,2.20483581]
[1755201829078,3.524,4535.7,4535.4,2.20483581]
[1755201829479,3.524,4535.7,4535.3,2.20492279]
[1755201829786,3.524,4535.7,4535.1,2.2049985]
[1755201829787,0.4541,4535.6,4534.7,0.001]
[1755201830003,3.524,4535.7,4535.4,2.20484838]
[1755201830199,3.524,4535.7,4535.4,2.20484953]
[1755201830495,3.524,4535.7,4535.2,2.20492581]
[1755201830799,3.524,4535.7,4535.0,2.20507042]
[1755201830800,0.4541,4535.6,4535.3,2.20491728]
[1755201830961,3.524,4535.7,4535.4,2.20486115]
[1755201831361,3.524,4535.7,4535.3,2.20491448]
[1755201831583,3.524,4535.7,4535.4,2.20487607]
[1755201832214,3.524,4535.7,4535.2,2.20494603]
[1755201832403,3.524,4535.7,4535.3,2.20488689]
[1755201832588,0.9513,4535.6,4534.7,0.001]
[1755201833121,0.9513,4535.6,4534.7,2.20620028]
[1755201833412,0.9513,4535.6,4534.7,0.001]
[1755201833591,0.9513,4535.6,4534.9,2.2051092]
[1755201833789,0.4723,4535.6,4534.9,2.2051092]
[1755201834483,3.524,4535.7,4534.7,0.001]
[1755201834912,1.15,4535.6,4534.7,0.001]
[1755201835117,1.15,4535.6,4535.0,2.20504535]
[1755201835418,1.15,4535.6,4534.7,0.001]
[1755201835588,1.15,4535.6,4535.1,2.20498433]
[1755201835795,1.15,4535.7,4534.7,0.001]
[1755201835989,6.44,4535.8,4535.1,0.4981]
[1755201836193,3.513,4535.7,4535.2,2.20497442]
[1755201836398,3.513,4535.7,4535.3,2.20487792]
[1755201836616,3.463,4535.7,4535.4,2.20486448]
[1755201837280,3.463,4535.7,4535.4,2.20482924]
[1755201838191,3.463,4535.7,4535.5,2.20481169]
[1755201838583,0.1104,4535.6,4535.0,0.1104]
[1755201838816,0.1104,4535.6,4535.4,2.20483528]
[1755201839224,0.1104,4535.6,4535.1,2.20502304]
[1755201839521,0.1104,4535.6,4535.4,2.2048363]
[1755201840213,0.1104,4535.6,4535.2,2.20496735]
[1755201840421,0.1104,4535.6,4535.3,2.2048816]
[1755201840723,0.55,4535.3,4534.7,0.001]
[1755201841025,2.75516891,4534.8,4534.7,0.001]
[1755201841319,6.1613,4534.8,4534.7,0.001]
[1755201841479,8.36646891,4534.8,4534.7,0.001]
[1755201842789,6.1613,4534.8,4534.7,0.001]
[1755201842991,5.6823,4534.8,4534.7,0.001]
[1755201844435,1.7,4534.8,4534.7,0.001]
[1755201844633,5.21,4534.8,4534.7,0.001]
[1755201845188,1.15,4534.8,4534.7,0.001]
[1755201845392,4.66,4534.8,4534.7,0.001]
[1755201845696,5.1323,4534.8,4534.7,0.001]
[1755201846206,4.66,4534.8,4534.7,0.001]
[1755201846527,8.53217801,4534.8,4534.7,0.001]
[1755201847643,18.57217801,4534.8,4534.7,0.001]
[1755201848126,15.8890091,4534.8,4534.7,0.001]
[1755201848352,18.09417801,4534.8,4534.7,0.001]
[1755201848624,18.57317801,4534.8,4534.7,0.001]
[1755201849563,18.57217801,4534.8,4534.7,0.001]
[1755201850656,18.68257801,4534.8,4534.7,0.001]
[1755201851928,15.17257801,4534.8,4534.7,0.001]
[1755201852133,17.73227801,4534.8,4534.7,0.001]
[1755201852761,18.20457801,4534.8,4534.7,0.001]
[1755201854171,9.0161091,4534.8,4534.7,0.001]
[1755201854691,3.7871091,4534.8,4534.7,0.001]
[1755201854837,0.1104,4534.8,4534.7,3.15501754]
[1755201855167,0.1104,4534.8,4534.7,3.69115045]
[1755201855168,3.511,4534.8,4534.7,3.69115045]
[1755201855349,0.1104,4535.4,4534.7,1.48593291]
[1755201855547,3.511,4535.3,4535.0,2.20503094]
[1755201855747,3.511,4535.3,4534.7,0.53713291]
[1755201855748,0.55,4535.2,4534.7,0.001]
[1755201856062,2.75516891,4534.8,4534.7,0.001]
[1755201856248,10.21646891,4534.8,4534.7,0.001]
[1755201856655,11.09674468,4534.8,4534.7,0.001]
[1755201857686,10.89222433,4534.8,4534.7,0.001]
[1755201858652,2.2053148,4534.5,4533.9,0.001]
[1755201858850,10.2166148,4534.5,4533.9,0.001]
[1755201859086,10.89219857,4534.5,4533.9,0.001]
[1755201859396,10.68785491,4534.5,4533.9,0.001]
[1755201859692,6.69885491,4534.5,4533.9,0.001]
[1755201859903,9.2653148,4534.5,4533.9,0.001]
[1755201860245,6.2276148,4534.5,4533.9,0.001]
[1755201860447,9.2653148,4534.5,4533.9,0.001]
[1755201860645,10.4153148,4534.5,4533.9,0.001]
[1755201860849,10.8876148,4534.5,4533.9,0.001]
[1755201861097,11.3666148,4534.5,4533.9,0.001]
[1755201861452,10.8876148,4534.5,4533.9,0.001]
[1755201861672,6.9053148,4534.5,4533.9,0.001]
[1755201861874,10.4153148,4534.5,4533.9,0.001]
[1755201862122,7.3747148,4534.5,4533.9,0.001]
[1755201862328,10.8847148,4534.5,4533.9,0.001]
[1755201862613,10.4153148,4534.5,4533.9,0.001]
[1755201862817,6.9053148,4534.5,4533.9,0.001]
[1755201863033,8.21,4534.5,4533.9,0.001]
[1755201863525,1.15,4534.5,4533.9,0.001]
[1755201863683,5.21,4534.5,4533.9,0.001]
[1755201864024,4.66,4534.5,4533.9,0.001]
[1755201864599,4.06,4534.5,4533.9,0.001]
[1755201865115,4.06,4534.5,4534.1,0.4692]
[1755201865819,4.1704,4534.5,4534.1,0.4692]
[1755201865998,4.1704,4534.5,4533.9,0.001]
[1755201866621,6.3757148,4534.5,4533.9,0.001]
[1755201866918,10.3350148,4534.5,4533.9,0.001]
[1755201867282,11.21561193,4534.5,4533.9,0.001]
[1755201867683,17.83261193,4534.5,4533.9,0.001]
[1755201868421,18.42248778,4534.5,4533.9,0.001]
[1755201869296,17.83261193,4534.5,4533.9,0.001]
[1755201869623,17.95554616,4534.5,4533.9,0.001]
[1755201869922,16.60868546,4534.5,4533.9,0.001]
[1755201870122,15.54931193,4534.5,4533.9,0.001]
[1755201870625,16.01871193,4534.5,4533.9,0.001]
[1755201870842,15.54931193,4534.5,4533.9,0.001]
[1755201871486,16.01871193,4534.5,4533.9,0.001]
[1755201871726,16.50861193,4534.5,4533.9,0.001]
[1755201871925,0.55,4534.1,4533.9,0.001]
[1755201872125,23.59998871,4534.0,4533.9,0.001]
[1755201872353,26.27684268,4534.0,4533.9,0.001]
[1755201872514,26.01240655,4534.0,4533.9,0.001]
[1755201872950,26.48180655,4534.0,4533.9,0.001]
[1755201873154,26.68675812,4534.0,4533.9,0.001]
[1755201873318,26.21735812,4534.0,4533.9,0.001]
[1755201873767,26.68675812,4534.0,4533.9,0.001]
[1755201874113,5.75580125,4533.5,4533.3,0.001]
[1755201874331,5.75584991,4533.4,4533.3,0.001]
[1755201874571,6.69654588,4533.4,4533.3,0.001]
[1755201874769,6.69654588,4533.4,4531.4,2.31722275]
[1755201874770,0.55,4532.7,4531.9,0.4692]
[1755201875071,0.55,4532.7,4529.2,2.20788764]
[1755201875072,2.20599589,4533.1,4531.2,0.1104]
[1755201875073,16.62058871,4532.1,4531.2,0.1104]
[1755201875238,5.9534,4532.1,4532.0,2.1331]
[1755201875438,5.4034,4532.1,4532.0,2.1331]
[1755201875660,8.9134,4532.1,4532.0,2.1331]
[1755201877973,5.4034,4532.1,4532.0,2.1331]